[Event "Titled Tuesday Blitz April 18 Early 2023"]
[White "Martinez Ramirez, Lennis"]
[Black "Wisniacki, Flavio"]
[WhiteFideId "3509079"]
[BlackFideId "119229"]
[WhiteElo "2410"]
[BlackElo "2150"]
[Result "1-0"]
[Round "08"]
[TimeControl "180+2"]
[Date "2023.04.18"]
[WhiteClock "0:00:17"]
[BlackClock "0:00:04"]

1. e4 {[%clk 0:03:00]}  e5 {[%clk 0:02:57]} 2. Nf3 {[%clk 0:02:57]}  Nc6 {[%clk 0:02:57]} 3. Bc4 {[%clk 0:02:56]}  Nf6 {[%clk 0:02:56]} 4. d3 {[%clk 0:02:53]}  Bc5 {[%clk 0:02:55]} 5. c3 {[%clk 0:02:52]}  a6 {[%clk 0:02:55]} 6. b4 {[%clk 0:02:51]}  Ba7 {[%clk 0:02:54]} 7. a4 {[%clk 0:02:51]}  d6 {[%clk 0:02:54]} 8. h3 {[%clk 0:02:49]}  O-O {[%clk 0:02:53]} 9. Bg5 {[%clk 0:02:48]}  Be6 {[%clk 0:02:44]} 10. Nbd2 {[%clk 0:02:47]}  Qe7 {[%clk 0:02:30]} 11. O-O {[%clk 0:02:46]}  Nd8 {[%clk 0:02:30]} 12. b5 {[%clk 0:02:25]}  axb5 {[%clk 0:02:25]} 13. axb5 {[%clk 0:02:26]}  Bxc4 {[%clk 0:02:25]} 14. Nxc4 {[%clk 0:02:24]}  Ne6 {[%clk 0:02:25]} 15. Bh4 {[%clk 0:02:20]}  Nf4 {[%clk 0:02:03]} 16. Ne3 {[%clk 0:02:02]}  Bxe3 {[%clk 0:01:55]} 17. fxe3 {[%clk 0:02:03]}  Rxa1 {[%clk 0:01:43]} 18. Qxa1 {[%clk 0:02:01]}  Nxd3 {[%clk 0:01:43]} 19. Bxf6 {[%clk 0:01:46]}  gxf6 {[%clk 0:01:11]} 20. Nh4 {[%clk 0:01:46]}  Kh8 {[%clk 0:01:12]} 21. Nf5 {[%clk 0:01:29]}  Qd7 {[%clk 0:01:07]} 22. c4 {[%clk 0:01:22]}  Nc5 {[%clk 0:01:05]} 23. Qd1 {[%clk 0:01:19]}  Rg8 {[%clk 0:01:01]} 24. Qf3 {[%clk 0:01:18]}  Rg6 {[%clk 0:01:00]} 25. Ra1 {[%clk 0:01:16]}  Qd8 {[%clk 0:00:52]} 26. h4 {[%clk 0:01:04]}  Ne6 {[%clk 0:00:46]} 27. h5 {[%clk 0:01:04]}  Rg5 {[%clk 0:00:42]} 28. Nh6 {[%clk 0:01:03]}  Kg7 {[%clk 0:00:31]} 29. Ng4 {[%clk 0:01:01]}  Rxg4 {[%clk 0:00:17]} 30. Qxg4+ {[%clk 0:01:01]}  Ng5 {[%clk 0:00:18]} 31. Qf5 {[%clk 0:00:34]}  b6 {[%clk 0:00:15]} 32. Rf1 {[%clk 0:00:27]}  h6 {[%clk 0:00:14]} 33. Ra1 {[%clk 0:00:28]}  Qe7 {[%clk 0:00:14]} 34. Kf2 {[%clk 0:00:26]}  Qe6 {[%clk 0:00:14]} 35. Qxe6 {[%clk 0:00:20]}  Nxe6 {[%clk 0:00:15]} 36. Ra8 {[%clk 0:00:19]}  Kh7 {[%clk 0:00:12]} 37. Rc8 {[%clk 0:00:18]}  Kg7 {[%clk 0:00:12]} 38. Kf3 {[%clk 0:00:17]}  Kh7 {[%clk 0:00:12]} 39. Kg4 {[%clk 0:00:17]}  Kg7 {[%clk 0:00:10]} 40. Kf5 {[%clk 0:00:18]}  Kh7 {[%clk 0:00:06]} 41. Kxf6 {[%clk 0:00:18]}  Ng5 {[%clk 0:00:06]} 42. Rxc7 {[%clk 0:00:17]}  Nxe4+ {[%clk 0:00:05]} 43. Kxf7 {[%clk 0:00:17]}  Ng5+ {[%clk 0:00:05]} 44. Kf6+ {[%clk 0:00:18]}  Kh8 {[%clk 0:00:04]} 45. Kg6 {[%clk 0:00:18]}  Ne4 {[%clk 0:00:04]} 46. Rc8# {[%clk 0:00:17]} 1-0


[Site "https://www.chess.com"]

[Event "Titled Tuesday Blitz April 18 Early 2023"]
[White "Danielyan, Vahe"]
[Black "Baches Garcia, Guillermo"]
[WhiteFideId "13304828"]
[BlackFideId "2209764"]
[WhiteElo "2423"]
[BlackElo "2468"]
[Result "1-0"]
[Round "08"]
[TimeControl "180+2"]
[Date "2023.04.18"]
[WhiteClock "0:02:14"]
[BlackClock "0:00:38"]

1. d4 {[%clk 0:03:00]}  Nf6 {[%clk 0:02:58]} 2. c4 {[%clk 0:02:57]}  e6 {[%clk 0:02:59]} 3. Nc3 {[%clk 0:02:56]}  d5 {[%clk 0:02:59]} 4. Qc2 {[%clk 0:02:57]}  c5 {[%clk 0:02:51]} 5. Nf3 {[%clk 0:02:54]}  Nc6 {[%clk 0:02:36]} 6. cxd5 {[%clk 0:02:54]}  Nxd4 {[%clk 0:02:22]} 7. Nxd4 {[%clk 0:02:54]}  cxd4 {[%clk 0:02:22]} 8. Qa4+ {[%clk 0:02:55]}  Bd7 {[%clk 0:02:22]} 9. Qxd4 {[%clk 0:02:55]}  exd5 {[%clk 0:02:20]} 10. Bg5 {[%clk 0:02:56]}  Be7 {[%clk 0:02:14]} 11. Rd1 {[%clk 0:02:56]}  O-O {[%clk 0:02:01]} 12. g3 {[%clk 0:02:54]}  h6 {[%clk 0:01:56]} 13. h4 {[%clk 0:02:44]}  Be6 {[%clk 0:01:36]} 14. Bg2 {[%clk 0:02:43]}  Rc8 {[%clk 0:01:16]} 15. Kf1 {[%clk 0:02:25]}  Qa5 {[%clk 0:01:08]} 16. Bd2 {[%clk 0:02:18]}  Bc5 {[%clk 0:01:00]} 17. Nxd5 {[%clk 0:02:14]}  Bxd4 {[%clk 0:00:42]} 18. Ne7+ {[%clk 0:02:13]}  Kh7 {[%clk 0:00:38]} 19. Bxa5 {[%clk 0:02:14]} 1-0


[Site "https://www.chess.com"]

[Event "Titled Tuesday Blitz April 18 Early 2023"]
[White "Elgersma, Onno"]
[Black "Fernandez Siles, Luis"]
[WhiteFideId "1053531"]
[BlackFideId "2209420"]
[WhiteElo "2252"]
[BlackElo "2195"]
[Result "1-0"]
[Round "08"]
[TimeControl "180+2"]
[Date "2023.04.18"]
[WhiteClock "0:00:28"]
[BlackClock "0:00:01"]

1. Nf3 {[%clk 0:02:55]}  Nf6 {[%clk 0:02:59]} 2. b3 {[%clk 0:02:55]}  g6 {[%clk 0:02:58]} 3. Bb2 {[%clk 0:02:55]}  Bg7 {[%clk 0:02:59]} 4. e3 {[%clk 0:02:56]}  O-O {[%clk 0:02:59]} 5. d4 {[%clk 0:02:54]}  d6 {[%clk 0:02:55]} 6. c4 {[%clk 0:02:44]}  Ne4 {[%clk 0:02:55]} 7. Nbd2 {[%clk 0:02:43]}  Nxd2 {[%clk 0:02:53]} 8. Qxd2 {[%clk 0:02:44]}  Nd7 {[%clk 0:02:50]} 9. Be2 {[%clk 0:02:44]}  f5 {[%clk 0:02:50]} 10. O-O {[%clk 0:02:44]}  Nf6 {[%clk 0:02:50]} 11. d5 {[%clk 0:02:41]}  c5 {[%clk 0:02:34]} 12. dxc6 {[%clk 0:02:37]}  bxc6 {[%clk 0:02:34]} 13. Rfd1 {[%clk 0:02:32]}  a5 {[%clk 0:02:27]} 14. c5 {[%clk 0:02:30]}  d5 {[%clk 0:02:26]} 15. Qc2 {[%clk 0:02:18]}  a4 {[%clk 0:02:12]} 16. Ne5 {[%clk 0:01:59]}  a3 {[%clk 0:02:09]} 17. Bd4 {[%clk 0:01:59]}  Qc7 {[%clk 0:02:01]} 18. b4 {[%clk 0:01:59]}  Ne4 {[%clk 0:01:31]} 19. f4 {[%clk 0:01:56]}  g5 {[%clk 0:01:19]} 20. Bf3 {[%clk 0:01:55]}  Be6 {[%clk 0:01:11]} 21. Rab1 {[%clk 0:01:48]}  g4 {[%clk 0:01:09]} 22. Bxe4 {[%clk 0:01:48]}  dxe4 {[%clk 0:01:10]} 23. b5 {[%clk 0:01:31]}  cxb5 {[%clk 0:01:08]} 24. Rxb5 {[%clk 0:01:31]}  Rfd8 {[%clk 0:01:04]} 25. Rdb1 {[%clk 0:01:27]}  Bd5 {[%clk 0:00:54]} 26. h3 {[%clk 0:01:24]}  g3 {[%clk 0:00:51]} 27. Qe2 {[%clk 0:01:05]}  Ra4 {[%clk 0:00:46]} 28. Qe1 {[%clk 0:01:00]}  Bxa2 {[%clk 0:00:41]} 29. Ra1 {[%clk 0:00:57]}  Bc4 {[%clk 0:00:35]} 30. Rb6 {[%clk 0:00:35]}  a2 {[%clk 0:00:30]} 31. Qxg3 {[%clk 0:00:35]}  e6 {[%clk 0:00:20]} 32. c6 {[%clk 0:00:27]}  Rxd4 {[%clk 0:00:06]} 33. Rb7 {[%clk 0:00:28]}  Rd1+ {[%clk 0:00:01]} 34. Rxd1 {[%clk 0:00:27]}  a1=Q {[%clk 0:00:01]} 35. Rxc7 {[%clk 0:00:27]}  Qxd1+ {[%clk 0:00:01]} 36. Kh2 {[%clk 0:00:28]} 1-0


[Site "https://www.chess.com"]

[Event "Titled Tuesday Blitz April 18 Early 2023"]
[White "Fiedorek, Michal"]
[Black "Smiechu"]
[WhiteFideId "1199528"]
[WhiteElo "2135"]
[BlackElo "2371"]
[Result "0-1"]
[Round "08"]
[TimeControl "180+2"]
[Date "2023.04.18"]
[WhiteClock "0:00:14"]
[BlackClock "0:00:15"]

1. d4 {[%clk 0:02:58]}  Nf6 {[%clk 0:02:59]} 2. Nf3 {[%clk 0:02:55]}  c5 {[%clk 0:02:59]} 3. d5 {[%clk 0:02:46]}  e6 {[%clk 0:02:57]} 4. c4 {[%clk 0:02:44]}  exd5 {[%clk 0:02:57]} 5. cxd5 {[%clk 0:02:45]}  d6 {[%clk 0:02:58]} 6. Nc3 {[%clk 0:02:45]}  g6 {[%clk 0:02:58]} 7. Bf4 {[%clk 0:02:38]}  Bg7 {[%clk 0:02:59]} 8. h3 {[%clk 0:02:39]}  O-O {[%clk 0:02:56]} 9. e3 {[%clk 0:02:40]}  a6 {[%clk 0:02:50]} 10. a4 {[%clk 0:02:39]}  Re8 {[%clk 0:02:51]} 11. Be2 {[%clk 0:02:37]}  Nbd7 {[%clk 0:02:48]} 12. O-O {[%clk 0:02:36]}  Nh5 {[%clk 0:02:46]} 13. Bxd6 {[%clk 0:02:35]}  Qb6 {[%clk 0:02:45]} 14. Bh2 {[%clk 0:02:24]}  Qxb2 {[%clk 0:02:45]} 15. g4 {[%clk 0:01:39]}  Qxc3 {[%clk 0:02:33]} 16. Rc1 {[%clk 0:01:35]}  Qf6 {[%clk 0:02:17]} 17. gxh5 {[%clk 0:01:35]}  Qf5 {[%clk 0:02:17]} 18. hxg6 {[%clk 0:01:27]}  hxg6 {[%clk 0:02:14]} 19. Kg2 {[%clk 0:01:15]}  Ne5 {[%clk 0:02:14]} 20. Ng1 {[%clk 0:01:15]}  Qg5+ {[%clk 0:01:52]} 21. Kh1 {[%clk 0:01:09]}  Qh6 {[%clk 0:01:42]} 22. Kg2 {[%clk 0:01:06]}  g5 {[%clk 0:01:37]} 23. Rxc5 {[%clk 0:00:46]}  Ng6 {[%clk 0:01:35]} 24. Bg3 {[%clk 0:00:39]}  Nh4+ {[%clk 0:01:35]} 25. Kh2 {[%clk 0:00:36]}  f5 {[%clk 0:01:17]} 26. d6 {[%clk 0:00:35]}  Bd7 {[%clk 0:01:13]} 27. Qd5+ {[%clk 0:00:34]}  Kh8 {[%clk 0:01:12]} 28. Qxb7 {[%clk 0:00:34]}  Rad8 {[%clk 0:01:06]} 29. Rc7 {[%clk 0:00:32]}  f4 {[%clk 0:00:45]} 30. Rxd7 {[%clk 0:00:32]}  fxg3+ {[%clk 0:00:41]} 31. fxg3 {[%clk 0:00:32]}  Be5 {[%clk 0:00:27]} 32. Rxd8 {[%clk 0:00:31]}  Rxd8 {[%clk 0:00:26]} 33. Qe7 {[%clk 0:00:18]}  Qxd6 {[%clk 0:00:18]} 34. Qxd6 {[%clk 0:00:18]}  Bxd6 {[%clk 0:00:18]} 35. Rd1 {[%clk 0:00:18]}  Nf5 {[%clk 0:00:16]} 36. Bxa6 {[%clk 0:00:17]}  Bxg3+ {[%clk 0:00:14]} 37. Kg2 {[%clk 0:00:14]}  Rxd1 {[%clk 0:00:15]} 0-1


[Site "https://www.chess.com"]

[Event "Titled Tuesday Blitz April 18 Early 2023"]
[White "hsd2016"]
[Black "Palczert, Matyas"]
[BlackFideId "784958"]
[WhiteElo "2199"]
[BlackElo "2224"]
[Result "0-1"]
[Round "08"]
[TimeControl "180+2"]
[Date "2023.04.18"]
[WhiteClock "0:00:01"]
[BlackClock "0:00:28"]

1. e4 {[%clk 0:03:00]}  c5 {[%clk 0:02:59]} 2. Nf3 {[%clk 0:03:01]}  Nf6 {[%clk 0:02:58]} 3. e5 {[%clk 0:02:58]}  Nd5 {[%clk 0:02:58]} 4. Bc4 {[%clk 0:02:55]}  e6 {[%clk 0:02:52]} 5. d4 {[%clk 0:02:54]}  cxd4 {[%clk 0:02:50]} 6. Nxd4 {[%clk 0:02:55]}  Nc6 {[%clk 0:02:49]} 7. Nxc6 {[%clk 0:02:55]}  dxc6 {[%clk 0:02:46]} 8. O-O {[%clk 0:02:53]}  Qc7 {[%clk 0:02:45]} 9. f4 {[%clk 0:02:39]}  b5 {[%clk 0:02:43]} 10. Bxd5 {[%clk 0:02:33]}  cxd5 {[%clk 0:02:42]} 11. Be3 {[%clk 0:02:29]}  Bb7 {[%clk 0:02:41]} 12. c3 {[%clk 0:02:26]}  Bc5 {[%clk 0:02:29]} 13. Qe2 {[%clk 0:02:21]}  O-O-O {[%clk 0:02:21]} 14. Nd2 {[%clk 0:02:19]}  Rhg8 {[%clk 0:02:02]} 15. Nb3 {[%clk 0:02:09]}  Bxe3+ {[%clk 0:01:59]} 16. Qxe3 {[%clk 0:02:10]}  Kb8 {[%clk 0:01:57]} 17. Nd4 {[%clk 0:02:03]}  Qb6 {[%clk 0:01:53]} 18. Rfe1 {[%clk 0:01:59]}  Rc8 {[%clk 0:01:52]} 19. a4 {[%clk 0:00:33]}  b4 {[%clk 0:01:46]} 20. a5 {[%clk 0:00:18]}  Qc5 {[%clk 0:01:19]} 21. cxb4 {[%clk 0:00:16]}  Qxb4 {[%clk 0:01:18]} 22. a6 {[%clk 0:00:17]}  Bc6 {[%clk 0:01:15]} 23. Rec1 {[%clk 0:00:17]}  Ba4 {[%clk 0:01:09]} 24. b3 {[%clk 0:00:12]}  Bd7 {[%clk 0:01:05]} 25. Rxc8+ {[%clk 0:00:03]}  Rxc8 {[%clk 0:00:54]} 26. h3 {[%clk 0:00:03]}  Rc3 {[%clk 0:00:48]} 27. Qd2 {[%clk 0:00:03]}  Rc4 {[%clk 0:00:39]} 28. Qxb4+ {[%clk 0:00:02]}  Rxb4 {[%clk 0:00:39]} 29. Rd1 {[%clk 0:00:03]}  Kc7 {[%clk 0:00:39]} 30. Kf2 {[%clk 0:00:04]}  Kb6 {[%clk 0:00:39]} 31. Ke3 {[%clk 0:00:04]}  Kxa6 {[%clk 0:00:38]} 32. Ra1+ {[%clk 0:00:05]}  Kb6 {[%clk 0:00:38]} 33. g4 {[%clk 0:00:05]}  a5 {[%clk 0:00:38]} 34. g5 {[%clk 0:00:03]}  g6 {[%clk 0:00:35]} 35. Rc1 {[%clk 0:00:03]}  a4 {[%clk 0:00:33]} 36. bxa4 {[%clk 0:00:03]}  Rxa4 {[%clk 0:00:33]} 37. Rb1+ {[%clk 0:00:04]}  Kc5 {[%clk 0:00:32]} 38. Rc1+ {[%clk 0:00:04]}  Rc4 {[%clk 0:00:32]} 39. Rb1 {[%clk 0:00:05]}  Rc3+ {[%clk 0:00:31]} 40. Kd2 {[%clk 0:00:04]}  Kxd4 {[%clk 0:00:31]} 41. Rb7 {[%clk 0:00:05]}  Ba4 {[%clk 0:00:29]} 42. Rxf7 {[%clk 0:00:05]}  Rc2+ {[%clk 0:00:29]} 43. Ke1 {[%clk 0:00:06]}  Ke3 {[%clk 0:00:29]} 44. Kf1 {[%clk 0:00:06]}  Bb5+ {[%clk 0:00:28]} 45. Kg1 {[%clk 0:00:05]}  Kf3 {[%clk 0:00:28]} 46. f5 {[%clk 0:00:01]}  Kg3 {[%clk 0:00:28]} 0-1


[Site "https://www.chess.com"]

[Event "Titled Tuesday Blitz April 18 Early 2023"]
[White "Topalov, Aleksandar"]
[Black "Skliarov, Viktor"]
[WhiteFideId "925659"]
[BlackFideId "14106736"]
[WhiteElo "2151"]
[BlackElo "2317"]
[Result "1/2-1/2"]
[Round "08"]
[TimeControl "180+2"]
[Date "2023.04.18"]
[WhiteClock "0:00:24"]
[BlackClock "0:00:17"]

1. b3 {[%clk 0:02:52]}  e5 {[%clk 0:02:56]} 2. Bb2 {[%clk 0:02:52]}  Nc6 {[%clk 0:02:57]} 3. c4 {[%clk 0:02:51]}  g6 {[%clk 0:02:55]} 4. Nc3 {[%clk 0:02:49]}  Bg7 {[%clk 0:02:55]} 5. g3 {[%clk 0:02:50]}  Nge7 {[%clk 0:02:55]} 6. Bg2 {[%clk 0:02:50]}  O-O {[%clk 0:02:56]} 7. a3 {[%clk 0:02:51]}  a5 {[%clk 0:02:55]} 8. e3 {[%clk 0:02:51]}  d6 {[%clk 0:02:48]} 9. Nge2 {[%clk 0:02:51]}  Be6 {[%clk 0:02:46]} 10. Nd5 {[%clk 0:02:51]}  Qd7 {[%clk 0:02:44]} 11. O-O {[%clk 0:02:49]}  Nd8 {[%clk 0:02:37]} 12. Qc2 {[%clk 0:02:43]}  Nxd5 {[%clk 0:02:30]} 13. cxd5 {[%clk 0:02:43]}  Bh3 {[%clk 0:02:30]} 14. Rac1 {[%clk 0:02:39]}  Bxg2 {[%clk 0:02:05]} 15. Kxg2 {[%clk 0:02:39]}  c6 {[%clk 0:02:06]} 16. Nc3 {[%clk 0:02:33]}  f5 {[%clk 0:02:00]} 17. f4 {[%clk 0:02:28]}  Nf7 {[%clk 0:01:58]} 18. Na4 {[%clk 0:02:25]}  Ra6 {[%clk 0:01:42]} 19. Qd3 {[%clk 0:02:05]}  c5 {[%clk 0:01:27]} 20. Nc3 {[%clk 0:01:56]}  e4 {[%clk 0:01:24]} 21. Qb1 {[%clk 0:01:48]}  b5 {[%clk 0:01:21]} 22. a4 {[%clk 0:01:44]}  b4 {[%clk 0:01:04]} 23. Nb5 {[%clk 0:01:43]}  Nh6 {[%clk 0:01:02]} 24. Qa1 {[%clk 0:01:36]}  Rb6 {[%clk 0:00:47]} 25. Bxg7 {[%clk 0:01:29]}  Qxg7 {[%clk 0:00:46]} 26. Qxg7+ {[%clk 0:01:29]}  Kxg7 {[%clk 0:00:47]} 27. d3 {[%clk 0:01:26]}  exd3 {[%clk 0:00:31]} 28. Rfd1 {[%clk 0:01:26]}  Ng4 {[%clk 0:00:31]} 29. Rxd3 {[%clk 0:01:22]}  Re8 {[%clk 0:00:32]} 30. Re1 {[%clk 0:01:21]}  Re7 {[%clk 0:00:32]} 31. h3 {[%clk 0:01:21]}  Nf6 {[%clk 0:00:32]} 32. Rc1 {[%clk 0:01:08]}  h5 {[%clk 0:00:30]} 33. Kf3 {[%clk 0:01:07]}  Ne4 {[%clk 0:00:30]} 34. Rc2 {[%clk 0:00:57]}  Rb8 {[%clk 0:00:28]} 35. Rd1 {[%clk 0:00:53]}  Kf6 {[%clk 0:00:26]} 36. Rh1 {[%clk 0:00:48]}  Rbe8 {[%clk 0:00:21]} 37. Re2 {[%clk 0:00:29]}  Rc8 {[%clk 0:00:20]} 38. Rc2 {[%clk 0:00:28]}  Rce8 {[%clk 0:00:18]} 39. Re2 {[%clk 0:00:28]}  Rc8 {[%clk 0:00:18]} 40. Rc2 {[%clk 0:00:24]}  Rce8 {[%clk 0:00:17]} 1/2-1/2


[Site "https://www.chess.com"]

[Event "Titled Tuesday Blitz April 18 Early 2023"]
[White "Pein, Jonathan"]
[Black "Sreyas Payyappat"]
[WhiteFideId "417092"]
[BlackFideId "46674969"]
[WhiteElo "2151"]
[BlackElo "2083"]
[Result "0-1"]
[Round "08"]
[TimeControl "180+2"]
[Date "2023.04.18"]
[WhiteClock "0:00:08"]
[BlackClock "0:00:23"]

1. Nf3 {[%clk 0:03:00]}  Nf6 {[%clk 0:02:58]} 2. c4 {[%clk 0:02:55]}  c5 {[%clk 0:02:58]} 3. g3 {[%clk 0:02:52]}  Nc6 {[%clk 0:02:58]} 4. Bg2 {[%clk 0:02:52]}  g6 {[%clk 0:02:57]} 5. d4 {[%clk 0:02:53]}  cxd4 {[%clk 0:02:56]} 6. Nxd4 {[%clk 0:02:53]}  Bg7 {[%clk 0:02:56]} 7. O-O {[%clk 0:02:53]}  h5 {[%clk 0:02:56]} 8. h4 {[%clk 0:02:51]}  O-O {[%clk 0:02:48]} 9. Nc3 {[%clk 0:02:51]}  Ng4 {[%clk 0:02:43]} 10. Nxc6 {[%clk 0:02:46]}  bxc6 {[%clk 0:02:42]} 11. Bg5 {[%clk 0:02:46]}  Rb8 {[%clk 0:02:36]} 12. Qd2 {[%clk 0:02:45]}  Ba6 {[%clk 0:02:30]} 13. b3 {[%clk 0:02:42]}  Qa5 {[%clk 0:02:28]} 14. Rac1 {[%clk 0:02:40]}  Rfe8 {[%clk 0:02:08]} 15. Rfd1 {[%clk 0:02:37]}  Qb6 {[%clk 0:01:58]} 16. e3 {[%clk 0:02:36]}  f6 {[%clk 0:01:56]} 17. Qxd7 {[%clk 0:02:31]}  fxg5 {[%clk 0:01:53]} 18. Bxc6 {[%clk 0:02:27]}  Ne5 {[%clk 0:01:45]} 19. Qe6+ {[%clk 0:02:23]}  Kh7 {[%clk 0:01:44]} 20. Bd5 {[%clk 0:01:30]}  Qxe6 {[%clk 0:01:37]} 21. Bxe6 {[%clk 0:01:31]}  gxh4 {[%clk 0:01:38]} 22. gxh4 {[%clk 0:01:32]}  Nf3+ {[%clk 0:01:37]} 23. Kf1 {[%clk 0:01:32]}  Nxh4 {[%clk 0:01:35]} 24. Rd7 {[%clk 0:01:32]}  Bc8 {[%clk 0:01:34]} 25. Nd5 {[%clk 0:01:26]}  Bxd7 {[%clk 0:01:32]} 26. Bxd7 {[%clk 0:01:27]}  Rf8 {[%clk 0:01:32]} 27. Ke2 {[%clk 0:01:23]}  e5 {[%clk 0:01:24]} 28. c5 {[%clk 0:01:23]}  e4 {[%clk 0:01:12]} 29. c6 {[%clk 0:01:23]}  Rb5 {[%clk 0:01:08]} 30. Ne7 {[%clk 0:01:08]}  Re5 {[%clk 0:01:01]} 31. Nxg6 {[%clk 0:00:50]}  Nxg6 {[%clk 0:00:54]} 32. c7 {[%clk 0:00:50]}  Ne7 {[%clk 0:00:54]} 33. b4 {[%clk 0:00:45]}  Nc8 {[%clk 0:00:53]} 34. b5 {[%clk 0:00:45]}  Re7 {[%clk 0:00:52]} 35. Bc6 {[%clk 0:00:45]}  Be5 {[%clk 0:00:50]} 36. Bxe4+ {[%clk 0:00:44]}  Kh8 {[%clk 0:00:46]} 37. Rh1 {[%clk 0:00:43]}  Bxc7 {[%clk 0:00:45]} 38. Rxh5+ {[%clk 0:00:44]}  Kg7 {[%clk 0:00:45]} 39. Bd3 {[%clk 0:00:39]}  Ref7 {[%clk 0:00:44]} 40. f4 {[%clk 0:00:37]}  Re8 {[%clk 0:00:42]} 41. Kf3 {[%clk 0:00:31]}  Nb6 {[%clk 0:00:40]} 42. Rh7+ {[%clk 0:00:21]}  Kf8 {[%clk 0:00:35]} 43. Rh5 {[%clk 0:00:20]}  Rd8 {[%clk 0:00:30]} 44. Bg6 {[%clk 0:00:15]}  Rf6 {[%clk 0:00:29]} 45. Be4 {[%clk 0:00:13]}  Nc4 {[%clk 0:00:29]} 46. Rc5 {[%clk 0:00:13]}  Nd2+ {[%clk 0:00:29]} 47. Ke2 {[%clk 0:00:12]}  Nxe4 {[%clk 0:00:29]} 48. Rxc7 {[%clk 0:00:13]}  Re6 {[%clk 0:00:27]} 49. Rxa7 {[%clk 0:00:13]}  Rd2+ {[%clk 0:00:26]} 50. Kf3 {[%clk 0:00:13]}  Nc3 {[%clk 0:00:26]} 51. f5 {[%clk 0:00:10]}  Re5 {[%clk 0:00:23]} 52. Kf4 {[%clk 0:00:10]}  Rdd5 {[%clk 0:00:23]} 53. Ra8+ {[%clk 0:00:08]}  Kf7 {[%clk 0:00:22]} 54. Ra7+ {[%clk 0:00:09]}  Re7 {[%clk 0:00:22]} 55. Rxe7+ {[%clk 0:00:06]}  Kxe7 {[%clk 0:00:23]} 56. e4 {[%clk 0:00:07]}  Rd4 {[%clk 0:00:23]} 57. b6 {[%clk 0:00:06]}  Rxe4+ {[%clk 0:00:24]} 58. Kg5 {[%clk 0:00:07]}  Rb4 {[%clk 0:00:23]} 59. f6+ {[%clk 0:00:07]}  Kf7 {[%clk 0:00:23]} 60. b7 {[%clk 0:00:08]} 0-1


[Site "https://www.chess.com"]

[Event "Titled Tuesday Blitz April 18 Early 2023"]
[White "Fiorito, Francisco"]
[Black "Matveeva, Olga"]
[WhiteFideId "180165"]
[BlackFideId "24107018"]
[WhiteElo "2341"]
[BlackElo "2056"]
[Result "1-0"]
[Round "08"]
[TimeControl "180+2"]
[Date "2023.04.18"]
[WhiteClock "0:00:15"]
[BlackClock "0:00:03"]

1. d4 {[%clk 0:03:00]}  Nf6 {[%clk 0:02:59]} 2. Nc3 {[%clk 0:03:00]}  d5 {[%clk 0:02:58]} 3. Bf4 {[%clk 0:03:00]}  c6 {[%clk 0:02:56]} 4. e3 {[%clk 0:03:00]}  Bf5 {[%clk 0:02:50]} 5. f3 {[%clk 0:02:59]}  Nbd7 {[%clk 0:02:44]} 6. g4 {[%clk 0:02:57]}  Bg6 {[%clk 0:02:44]} 7. h4 {[%clk 0:02:58]}  h6 {[%clk 0:02:39]} 8. Bd3 {[%clk 0:02:56]}  Bxd3 {[%clk 0:02:36]} 9. Qxd3 {[%clk 0:02:57]}  e6 {[%clk 0:02:32]} 10. Nge2 {[%clk 0:02:57]}  Qa5 {[%clk 0:02:28]} 11. a3 {[%clk 0:02:55]}  Be7 {[%clk 0:02:18]} 12. Ng3 {[%clk 0:02:54]}  c5 {[%clk 0:02:12]} 13. Kf2 {[%clk 0:02:52]}  cxd4 {[%clk 0:02:10]} 14. exd4 {[%clk 0:02:53]}  Rc8 {[%clk 0:02:07]} 15. g5 {[%clk 0:02:51]}  Ng8 {[%clk 0:01:58]} 16. Rae1 {[%clk 0:02:47]}  Qa6 {[%clk 0:01:33]} 17. Qxa6 {[%clk 0:02:35]}  bxa6 {[%clk 0:01:34]} 18. g6 {[%clk 0:02:34]}  Bxa3 {[%clk 0:01:27]} 19. Nxd5 {[%clk 0:02:25]}  Rxc2+ {[%clk 0:01:13]} 20. Kg1 {[%clk 0:02:22]}  Bxb2 {[%clk 0:01:13]} 21. Nc7+ {[%clk 0:02:21]}  Kf8 {[%clk 0:01:09]} 22. Nf5 {[%clk 0:01:37]}  fxg6 {[%clk 0:00:56]} 23. Nxe6+ {[%clk 0:01:34]}  Kf7 {[%clk 0:00:55]} 24. Nd6+ {[%clk 0:01:35]}  Kf6 {[%clk 0:00:49]} 25. Bg5+ {[%clk 0:01:24]}  hxg5 {[%clk 0:00:43]} 26. hxg5+ {[%clk 0:01:24]}  Ke7 {[%clk 0:00:39]} 27. Rxh8 {[%clk 0:01:06]}  Kxd6 {[%clk 0:00:38]} 28. Rxg8 {[%clk 0:01:06]}  Nb6 {[%clk 0:00:24]} 29. Rxg7 {[%clk 0:01:01]}  Nc4 {[%clk 0:00:20]} 30. Rxg6 {[%clk 0:00:59]}  Nd2 {[%clk 0:00:18]} 31. Nf4+ {[%clk 0:00:51]}  Kd7 {[%clk 0:00:16]} 32. Rg7+ {[%clk 0:00:48]}  Kc6 {[%clk 0:00:13]} 33. Re6+ {[%clk 0:00:47]}  Kb5 {[%clk 0:00:13]} 34. Rb7+ {[%clk 0:00:48]}  Ka5 {[%clk 0:00:11]} 35. Nd3 {[%clk 0:00:33]}  Bxd4+ {[%clk 0:00:11]} 36. Kg2 {[%clk 0:00:16]}  Ne4+ {[%clk 0:00:10]} 37. Kf1 {[%clk 0:00:14]}  Ng3+ {[%clk 0:00:08]} 38. Ke1 {[%clk 0:00:14]}  Bc3+ {[%clk 0:00:08]} 39. Kd1 {[%clk 0:00:14]}  Rd2+ {[%clk 0:00:07]} 40. Kc1 {[%clk 0:00:14]}  Rxd3 {[%clk 0:00:06]} 41. g6 {[%clk 0:00:14]}  Rxf3 {[%clk 0:00:03]} 42. Kc2 {[%clk 0:00:14]}  Bd4 {[%clk 0:00:03]} 43. g7 {[%clk 0:00:14]}  Bxg7 {[%clk 0:00:03]} 44. Rxg7 {[%clk 0:00:15]}  Nf5 {[%clk 0:00:03]} 45. Rg5 {[%clk 0:00:15]}  Ka4 {[%clk 0:00:03]} 46. Rxa6+ {[%clk 0:00:15]}  Kb5 {[%clk 0:00:03]} 47. Rf6 {[%clk 0:00:15]}  Kc4 {[%clk 0:00:03]} 48. Rfxf5 {[%clk 0:00:15]} 1-0


[Site "https://www.chess.com"]